Cogmind - Beta 12 X1 @@@ ROGUE MODE // 2022.08.09 @ 09:39:29 Player: Exp. Geonium Core Result: Destroyed by S-27 Virus with Autogun Performance ------------- Evolutions (6) 3000 Regions Visited (22) 4400 Robots Destroyed (281) 1405 Value Destroyed (12977) 12977 Prototype IDs (32) 640 Alien Tech Used (0) 0 Bonus (6260) 6260 TOTAL SCORE: 28682 Bonus ------- High Alert Combat Kills 2140 Follower Combat Kills 2884 Entered Garrisons 1600 Used RIF Installer 3000 Aligned with FarCom 300 Friendly Fire -3664 Cogmind --------- Core Integrity 0/1150 Matter 228/300 Energy 99/100 System Corruption 14% Temperature Cool (0) Movement Core (50) Location -4/Garrison Parts ------- > --- POWER (1) -------- (None) > --- PROPULSION (2) --- Improved Heavy Treads > --- UTILITY (14) ----- Improved Targeting Computer Authchip [R/Combat] Relay Coupler [Brawler] (10) > --- WEAPON (2) ------- (None) > --- INVENTORY (5) ---- Myomer Leg Heavy Gauss Cannon Improved Remote Datajack Improved Remote Datajack Peak State ------------ > --- POWER ------------ Improved Quantum Reactor > --- PROPULSION ------- Improved Heavy Siege Treads > --- UTILITY ---------- Experimental Heat Sink Advanced Cooling System High-capacity Storage Unit Experimental Optical Array Improved Remote Force Field Relay Coupler [NC] Relay Coupler [Grunt] Relay Coupler [Brawler] Relay Coupler [Duelist] Relay Coupler [Sentry] Relay Coupler [Specialist] Relay Coupler [Hunter] > --- WEAPON ----------- Remote Datajack Longsword +1 > --- INVENTORY -------- Light Quantum Reactor Improved Heavy Treads Quantum Capacitor Authchip [Device] Relay Coupler [NC] Relay Coupler [Cutter] Relay Coupler [Grunt] Relay Coupler [Grunt] Relay Coupler [Brawler] Relay Coupler [Demolisher] Relay Coupler [Specialist] Relay Coupler [Hunter] Relay Coupler [Heavy] Helical Railgun Helical Railgun Great Maul Power Sword [Rating: 102] Favorites ----------- Power Micro Nuclear Core Engine Light Ion Engine Power Core Micro Nuclear Core Reactor Light Quantum Reactor Propulsion Light Treads Treads Light Treads Leg Aluminum Leg Wheel Compact Wheel Utility Relay Coupler [Grunt] Device Heat Sink Storage High-capacity Storage Unit Processor Improved Targeting Computer Hackware Relay Coupler [Grunt] Protection Layered Light Armor Plating Weapon Longsword +1 Energy Gun Medium Laser Energy Cannon Long-range Proton Cannon Ballistic Gun Light Assault Rifle Ballistic Cannon Flak Cannon Launcher Missile Launcher Special Weapon Remote Datajack Slashing Weapon Longsword +1 Build | -11 -10 -10 -9 -9 -9 -8 -8 -8 -8 -8 -7 -7 -7 -7 -6 -6 -5 -5 -5 -5 -4 -4 ------- Run | Scr Mat Min Mat Min Exi Min Mat Gar Mat Gar Fac Gar Fac Gar Fac Gar Fac Gar Fac Gar Fac Gar Slots Evolved 12 | . . . 2 . . . 2 . . . 2 . . . 2 . 2 . . . 2 . Power . | . . . . . . . . . . . . . . . . . . . . . . . Propulsion . | . . . . . . . . . . . . . . . . . . . . . . . Utility 12 | . . . 2 . . . 2 . . . 2 . . . 2 . 2 . . . 2 . Weapon . | . . . . . . . . . . . . . . . . . . . . . . . Parts Attached 251 | . 6 3 18 3 2 . 10 14 4 9 10 10 6 8 3 29 15 31 6 22 42 . Power 22 | . 1 . 2 1 . . . 3 1 1 . . . . . 4 . 4 . 1 4 . Engine 11 | . 1 . 1 1 . . . 3 1 . . . . . . 1 . 1 . . 2 . Core 5 | . . . 1 . . . . . . 1 . . . . . 1 . 1 . . 1 . Reactor 6 | . . . . . . . . . . . . . . . . 2 . 2 . 1 1 . Propulsion 37 | . 2 1 5 2 . . 1 4 1 1 1 3 . 1 . 4 . 4 . 1 6 . Treads 32 | . 2 1 5 2 . . 1 4 1 1 1 1 . 1 . 4 . 4 . 1 3 . Leg 2 | . . . . . . . . . . . . 2 . . . . . . . . . . Wheel 3 | . . . . . . . . . . . . . . . . . . . . . 3 . Hover . | . . . . . . . . . . . . . . . . . . . . . . . Flight . | . . . . . . . . . . . . . . . . . . . . . . . Utility 90 | . 1 2 5 . 1 . 4 3 1 2 3 5 2 6 2 11 9 11 1 7 14 . Device 10 | . . 1 1 . . . 1 . . . . . . . . 4 . . . . 3 . Storage 5 | . 1 . 1 . 1 . . . . . . . . . . . . . . 1 1 . Processor 11 | . . . 1 . . . 2 . . . . . 1 . 1 1 1 . . . 4 . Hackware 50 | . . . . . . . . . . 1 2 5 1 6 1 5 8 11 1 6 3 . Protection 14 | . . 1 2 . . . 1 3 1 1 1 . . . . 1 . . . . 3 . Artifact . | . . . . . . . . . . . . . . . . . . . . . . . Weapon 102 | . 2 . 6 . 1 . 5 4 1 5 6 2 4 1 1 10 6 12 5 13 18 . Energy Gun 1 | . 1 . . . . . . . . . . . . . . . . . . . . . Energy Cannon 7 | . . . . . . . . . . . . . . . . . . . . . 7 . Ballistic Gun 30 | . 1 . 5 . 1 . 4 3 1 . 2 . . . . 1 4 6 . 2 . . Ballistic Cannon 13 | . . . . . . . . 1 . . . . 1 . . 4 . . . 3 4 . Launcher 17 | . . . . . . . . . . 1 2 . 1 . . 3 . 1 2 4 3 . Special Weapon 19 | . . . 1 . . . . . . 1 1 1 1 . 1 1 2 2 3 3 2 . Impact Weapon . | . . . . . . . . . . . . . . . . . . . . . . . Slashing Weapon 15 | . . . . . . . 1 . . 3 1 1 1 1 . 1 . 3 . 1 2 . Piercing Weapon . | . . . . . . . . . . . . . . . . . . . . . . . Special Melee Weapon . | . . . . . . . . . . . . . . . . . . . . . . . Unidentified Prototypes 9 | . . . 1 . . . . 1 . . . . 1 . . 4 1 . . 1 . . Parts Lost 98 | . 4 3 7 3 . . 8 6 . . 5 . . . . 6 5 13 2 5 29 2 Power 8 | . 1 . 1 . . . 1 1 . . . . . . . . 1 1 . . 2 . Propulsion 17 | . 1 1 3 2 . . 1 1 . . 2 . . . . 1 . 2 . . 3 . Utility 42 | . . 1 1 . . . 3 1 . . 2 . . . . 3 4 5 2 4 14 2 Weapon 31 | . 2 1 2 1 . . 3 3 . . 1 . . . . 2 . 5 . 1 10 . Highest Loss Streak 9 | . 4 3 3 3 . . 3 4 . . 3 . . . . 2 3 8 1 3 9 2 To Critical Strikes . | . . . . . . . . . . . . . . . . . . . . . . . Average Slot Usage (%) 85 | . 84 85 78 96 96 100 93 95 93 99 91 90 92 89 86 87 88 79 87 76 58 29 Engine 3 | . 13 13 5 11 11 11 8 6 5 7 . . . . . . . . . . 1 . Core 2 | . . . 2 . . . . . . 1 7 7 7 7 6 2 . . . . 1 . Reactor 1 | . . . . . . . . . . . . . . . . 3 4 2 5 5 1 . Treads 11 | . 19 27 20 22 22 22 17 17 18 18 11 6 7 6 6 5 5 8 5 5 3 5 Device 3 | . . 2 9 11 11 11 9 . . . . . . . . 7 10 . . . 4 4 Storage 7 | . 14 13 11 11 11 11 9 9 9 9 7 7 7 7 6 6 5 5 . 2 4 . Processor 9 | . . . 8 11 11 11 21 27 27 27 23 23 17 6 3 1 3 . . . 6 9 Hackware 25 | . . . . . . . . . . . 15 24 35 43 48 43 44 52 62 50 20 10 Protection 5 | . . 2 2 11 11 11 9 18 18 17 8 3 . . . 2 . . . . 3 . Ballistic Gun 5 | . 17 14 17 18 18 22 17 13 5 1 3 1 . . . 1 5 2 . . . . Ballistic Cannon 1 | . . . . . . . . 2 9 7 . . . . . 1 . . . 4 2 . Special Weapon 2 | . . . . . . . . . . 1 3 5 6 7 6 1 3 1 4 1 1 . Slashing Weapon 3 | . . . . . . . . . . 4 6 7 6 7 6 5 1 3 5 3 2 . Naked Turns . | . . . . . . . . . . . . . . . . . . . . . . . Heaviest Build 178 | 13 27 30 39 39 53 53 60 57 63 68 64 56 56 52 52 83 80 72 61 166 178 1 Greatest Support 75 | 20 40 40 40 40 40 40 40 40 40 40 40 75 75 75 75 75 75 75 75 75 75 3 Greatest Overweight (x) 5 | . . . 1 . 1 1 1 1 1 1 2 2 . . . 1 1 1 . 2 5 . Average Overweight (x) . | . . . . . . 1 1 1 1 1 1 . . . . . . . . . 2 . Largest Inventory Capacity 30 | . 15 15 15 15 20 20 20 20 20 20 20 20 20 20 20 20 20 20 20 30 30 5 Average Capacity 19 | . 9 14 14 15 16 20 20 20 20 20 20 20 20 20 20 20 20 20 6 17 28 5 Most Carried 30 | . 7 8 15 15 16 17 20 20 20 20 20 20 20 20 20 20 20 20 19 23 30 4 Average Carried 16 | . 4 5 7 14 15 16 17 18 18 19 18 18 19 19 19 19 19 17 6 11 24 4 Final Capacity 30 | 8 15 5 15 15 20 20 20 20 20 20 20 20 20 20 20 20 20 20 5 30 5 5 Final Carried 23 | 6 5 5 14 15 16 17 20 17 20 20 18 20 20 20 20 20 15 19 5 23 4 4 Class Distribution -------------------- 43% | Botlord-Mutant 23% | Scavenger-Mutant 14% | Bothacker-Mutant 12% | Mutant 5% | Hauler-Mutant Dominant Class ---------------- Mutant | -10/Materials Mutant | -10/Mines Scavenger-Mutant | -9/Materials Scavenger-Mutant | -9/Mines Scavenger-Mutant | -9/Exiles Scavenger-Mutant | -8/Mines Scavenger-Mutant | -8/Materials Scavenger-Mutant | -8/Garrison Scavenger-Mutant | -8/Materials Scavenger-Mutant | -8/Garrison Bothacker-Mutant | -7/Factory Bothacker-Mutant | -7/Garrison Bothacker-Mutant | -7/Factory Botlord-Mutant | -7/Garrison Botlord-Mutant | -6/Factory Botlord-Mutant | -6/Garrison Botlord-Mutant | -5/Factory Botlord-Mutant | -5/Garrison Botlord-Mutant | -5/Factory Botlord-Mutant | -5/Garrison Hauler-Mutant | -4/Factory Mutant | -4/Garrison Resources | -11 -10 -10 -9 -9 -9 -8 -8 -8 -8 -8 -7 -7 -7 -7 -6 -6 -5 -5 -5 -5 -4 -4 ----------- Run | Scr Mat Min Mat Min Exi Min Mat Gar Mat Gar Fac Gar Fac Gar Fac Gar Fac Gar Fac Gar Fac Gar Matter Collected 6653 | 200 171 77 554 106 . 20 246 307 380 228 20 476 125 207 . 651 313 812 283 735 737 5 Remotely . | . . . . . . . . . . . . . . . . . . . . . . . Salvage Created 11242 | . 512 222 1083 114 . . 439 512 807 322 203 788 160 851 . 1275 585 700 265 691 1713 . Parts 573 | . 27 16 77 14 . . 20 28 42 26 13 14 18 11 . 57 22 37 27 20 104 . Haulers Intercepted 3 | . 1 . 2 . . . . . . . . . . . . . . . . . . . Recyclers Shooed 18 | . 1 . 4 . . . . . 9 . . . . . . . . . 1 . 3 . Parts Field Recycled . | . . . . . . . . . . . . . . . . . . . . . . . Retrieved Matter . | . . . . . . . . . . . . . . . . . . . . . . . Parts Self-Destructed . | . . . . . . . . . . . . . . . . . . . . . . . Prevented . | . . . . . . . . . . . . . . . . . . . . . . . Kills | -11 -10 -10 -9 -9 -9 -8 -8 -8 -8 -8 -7 -7 -7 -7 -6 -6 -5 -5 -5 -5 -4 -4 ------- Run | Scr Mat Min Mat Min Exi Min Mat Gar Mat Gar Fac Gar Fac Gar Fac Gar Fac Gar Fac Gar Fac Gar Combat Hostiles Destroyed 227 | . 12 8 22 8 . . 10 13 17 19 9 1 4 1 . 20 6 24 10 10 33 . Melee 26 | . . . . . . . 1 . . 3 2 1 . 1 . 4 . 3 4 1 6 . Guns 83 | . 12 8 22 8 . . 9 10 2 . 1 . . . . . 6 5 . . . . Cannons 39 | . . . . . . . . 3 15 3 . . . . . 4 . . . 2 12 . AOE 79 | . . . . . . . . . . 13 6 . 4 . . 12 . 16 6 7 15 . Classes Destroyed 18 | . 4 2 3 . . . 1 . 2 2 . . . . . 3 . . . . 1 . Worker 18 | . . . 2 . . . . . . . . . 5 . . . . . . . 11 . Builder 7 | . 1 . . . . . . . . . 1 . 1 . . . . . 1 . 3 . Tunneler 2 | . . 1 1 . . . . . . . . . . . . . . . . . . . Hauler 4 | . 1 . 2 . . . . . . . . . . . . . . . . 1 . . Recycler 12 | . . 1 2 . . . 1 . 4 . . . . . . . 1 . . . 3 . Watcher 2 | . . . 1 . . . . . . . . . . . . . 1 . . . . . Swarmer 90 | . 3 6 10 8 . . 3 3 2 8 6 . 4 . . 10 . 8 7 3 9 . Cutter 7 | . . . . . . . . . . 3 . . . . . . . 4 . . . . Saboteur 1 | . . . . . . . . . . . . . . . . . . . . . 1 . Grunt 81 | . 9 2 6 . . . 5 7 7 3 3 . . . . 10 4 7 1 5 12 . Brawler 2 | . . . . . . . . . 1 . . . . . . . . . . . 1 . Duelist 8 | . . . . . . . . . 2 2 . . . . . . . . . 2 2 . Sentry 21 | . . . 6 . . . 1 3 4 . . . . 1 . . 2 3 . 1 . . Specialist 1 | . . . . . . . . . . . . . . . . . . . . . 1 . Hunter 6 | . . . . . . . 1 . 1 . . 1 . . . . . 1 . . 2 . Programmer 13 | . . . . . . . . . . 3 . . . . . . . 2 2 . 6 . Behemoth 3 | . . . . . . . . . . . . . . . . 3 . . . . . . Executioner 1 | . . . . . . . . . . . . . . . . 1 . . . . . . Infiltrator 2 | . . . . . . . . . . . . . . . . 2 . . . . . . Best Kill Streak 18 | . 10 4 8 4 . . 5 3 6 11 3 1 10 1 . 6 7 18 6 4 12 . Combat Bots Only 18 | . 9 3 4 4 . . 5 3 6 11 3 1 4 1 . 6 6 18 5 4 6 . Max Kills in Single Turn 12 | . 1 1 1 1 . . 1 2 1 3 2 1 10 1 . 4 1 3 2 2 12 . Gunslinging 1 | . . . . . . . . 1 . . . . . . . . . . . . . . Exploded 6 | . . . . . . . . . . 3 2 . 4 . . 4 . 3 2 2 6 . Melee 1 | . . . . . . . 1 . . 1 1 1 . 1 . 1 . 1 1 1 1 . Uniques/NPCs Destroyed . | . . . . . . . . . . . . . . . . . . . . . . . Combat | -11 -10 -10 -9 -9 -9 -8 -8 -8 -8 -8 -7 -7 -7 -7 -6 -6 -5 -5 -5 -5 -4 -4 -------- Run | Scr Mat Min Mat Min Exi Min Mat Gar Mat Gar Fac Gar Fac Gar Fac Gar Fac Gar Fac Gar Fac Gar Damage Taken 18415 | . 771 398 1030 488 . . 841 1144 481 352 1106 299 256 253 124 1298 1402 1656 423 695 4933 465 Core 3457 | . 178 58 234 65 . . 100 137 35 16 131 46 93 49 14 250 316 382 58 140 1084 71 Absorbed by Shields 21 | . . . . . . . . . . . . . . . . . 21 . . . . . Redirected to Shielding 160 | . . . . . . . . . . . . . . . . . . . . . 160 . Regen/Repaired (Parts) 13 | . . . . . . . . . . . . . 13 . . . . . . . . . Core Remaining (%) 44 | 100 . 5 . . . 25 . . . 47 . . . 54 . 68 . . . 10 . . Volleys Fired 661 | . 47 19 101 15 . . 35 55 59 16 18 18 13 23 1 39 32 45 25 38 62 . Largest 2 | . 2 2 2 2 . . 2 2 2 2 2 1 1 1 1 2 2 2 1 2 2 . Hottest 142 | . 70 70 46 46 . . 43 44 64 64 46 5 45 5 5 89 76 76 49 63 142 . Shots Fired 956 | . 91 37 138 30 . . 67 102 93 23 26 18 13 23 1 40 54 66 24 39 71 . Gun 604 | . 91 37 138 30 . . 67 95 34 7 16 . . . . . 44 44 . 1 . . Cannon 161 | . . . . . . . . 7 59 8 . . . . . 16 . . . 10 61 . Launcher 58 | . . . . . . . . . . 8 5 . 1 . . 9 . 15 2 13 5 . Special 133 | . . . . . . . . . . . 5 18 12 23 1 15 10 7 22 15 5 . Kinetic 715 | . 70 19 138 30 . . 67 102 93 15 16 . . . . 16 44 44 . 11 50 . Thermal 39 | . 21 18 . . . . . . . . . . . . . . . . . . . . Explosive 58 | . . . . . . . . . . 8 5 . 1 . . 9 . 15 2 13 5 . Electromagnetic 11 | . . . . . . . . . . . . . . . . . . . . . 11 . Robot Hit Streak 23 | . 12 11 18 5 . . 23 20 22 18 15 14 17 7 5 10 19 14 8 18 16 . Robot Miss Streak 5 | . 4 2 3 4 . . 1 3 4 2 2 1 1 4 . 5 2 2 2 5 4 . Penetration Max 1 | . . . . . . . . . . . . . . . . . 1 . . . . . Secondary Targets 14 | . 3 1 1 3 . . 1 1 . . . . . . . . 3 1 . . . . Max Gunslinging Chain 1 | . 1 1 1 1 . . 1 1 . . . . . . . . 1 1 . . . . Shots Hit Robots 869 | . 64 23 106 17 . . 60 73 83 28 21 45 9 44 1 60 46 57 25 45 62 . Core Hits 594 | . 27 12 45 10 . . 24 36 87 33 16 10 16 10 . 72 19 49 17 34 77 . Critical Kills 2 | . . . . . . . . 1 . . . . . . . . 1 . . . . . Critical Parts Destroyed 3 | . . . 1 . . . . . . . . . . . . . 2 . . . . . Critical Strikes 28 | . 2 . 1 . . . . 1 . 3 . 1 . 1 . 5 3 2 . 1 8 . Burn 2 | . 2 . . . . . . . . . . . . . . . . . . . . . Destroy 5 | . . . 1 . . . . 1 . . . . . . . . 3 . . . . . Blast 8 | . . . . . . . . . . . . . . . . . . . . 1 7 . Sever 13 | . . . . . . . . . . 3 . 1 . 1 . 5 . 2 . . 1 . Melee Attacks 277 | . . . . . . . 1 . . 24 4 58 3 52 1 47 1 30 9 25 22 . Impact . | . . . . . . . . . . . . . . . . . . . . . . . Slashing 277 | . . . . . . . 1 . . 24 4 58 3 52 1 47 1 30 9 25 22 . Piercing . | . . . . . . . . . . . . . . . . . . . . . . . Sneak Attacks 39 | . . . . . . . . . . . 1 . . . . 9 . 9 3 11 6 . Combat Hostiles 4 | . . . . . . . . . . . . . . . . 1 . 3 . . . . Follow-up Attacks . | . . . . . . . . . . . . . . . . . . . . . . . Damage Inflicted 36129 | . 791 305 1549 305 . . 768 921 1377 1695 890 2345 596 2707 . 4191 1378 3822 1571 4047 6871 . Guns 6735 | . 765 291 1535 298 . . 763 746 212 33 116 . . . . . 1129 847 . . . . Cannons 3551 | . . . . . . . . 175 1149 135 . . . . . 364 . . . 236 1492 . Explosions 12797 | . . . . . . . . . . 1003 593 . 585 . . 1330 220 1964 1094 1974 4034 . Melee 12807 | . . . . . . . . . . 524 181 2345 . 2707 . 2497 . 1011 477 1837 1228 . Ramming 239 | . 26 14 14 7 . . 5 . 16 . . . 11 . . . 29 . . . 117 . Kinetic 9755 | . 550 124 1535 298 . . 763 921 1361 168 116 . . . . 364 1129 847 . 236 1343 . Thermal 382 | . 215 167 . . . . . . . . . . . . . . . . . . . . Explosive 12797 | . . . . . . . . . . 1003 593 . 585 . . 1330 220 1964 1094 1974 4034 . Electromagnetic 149 | . . . . . . . . . . . . . . . . . . . . . 149 . Impact . | . . . . . . . . . . . . . . . . . . . . . . . Slashing 12807 | . . . . . . . . . . 524 181 2345 . 2707 . 2497 . 1011 477 1837 1228 . Piercing . | . . . . . . . . . . . . . . . . . . . . . . . Highest Corruption 19 | . . . . . . . . . . 1 . . . . . . 1 8 8 19 14 14 Average Corruption 9 | . . . . . . . . . . 1 . . . . . . 1 5 8 15 8 14 Corruption Purged . | . . . . . . . . . . . . . . . . . . . . . . . Corruption Blocked . | . . . . . . . . . . . . . . . . . . . . . . . Effects 165 | . . . . . . . . . . 1 . . . . . . 1 30 25 62 44 2 Message Errors 43 | . . . . . . . . . . . . . . . . . 1 8 7 13 14 . Matter Fused 36 | . . . . . . . . . . . . . . . . . . 6 7 18 5 . Heat Flow Errors 18 | . . . . . . . . . . . . . . . . . . 4 3 7 4 . Energy Discharges 19 | . . . . . . . . . . . . . . . . . . 4 3 7 5 . Parts Rejected 2 | . . . . . . . . . . . . . . . . . . . . 1 1 . Data Loss (minor) 23 | . . . . . . . . . . 1 . . . . . . . 5 2 5 9 1 Data Loss (major) 12 | . . . . . . . . . . . . . . . . . . 2 2 6 1 1 Misfires 4 | . . . . . . . . . . . . . . . . . . 1 . 1 2 . Alerts 3 | . . . . . . . . . . . . . . . . . . . . 2 1 . Misdirections 3 | . . . . . . . . . . . . . . . . . . . . 1 2 . Weapon Failures 2 | . . . . . . . . . . . . . . . . . . . 1 1 . . Overload Shots . | . . . . . . . . . . . . . . . . . . . . . . . Overflow Damage 1601 | . . . . . . . . . . 106 87 207 . 63 . 7 28 245 80 114 664 . Projectiles 28 | . . . . . . . . . . . . . . . . . . . . 15 13 . Explosions 738 | . . . . . . . . . . 60 48 . . . . 7 28 147 41 36 371 . Melee 835 | . . . . . . . . . . 46 39 207 . 63 . . . 98 39 63 280 . Knockbacks 81 | . . . . . . . . 1 55 4 . . . . . 6 . . . 3 12 . Impact . | . . . . . . . . . . . . . . . . . . . . . . . Kinetic 74 | . . . . . . . . 1 50 4 . . . . . 5 . . . 3 11 . Secondary 7 | . . . . . . . . . 5 . . . . . . 1 . . . . 1 . Self-Inflicted Damage 1022 | . . . . . . . . . . . . . 31 . . 227 . 97 . 104 563 . Shots 28 | . . . . . . . . . . . . . 1 . . 13 . 2 . 2 10 . Rammed 49 | . 12 3 4 4 . . . . 5 . . . 1 . . . 3 . . . 17 . Targets Rammed 54 | . 14 5 4 4 . . 1 . 5 . . . 1 . . . 3 . . . 17 . Kicked 2 | . 2 . . . . . . . . . . . . . . . . . . . . . Crushed 3 | . . 2 . . . . 1 . . . . . . . . . . . . . . . Highest Temperature 325 | . 150 222 . . . . 19 224 325 133 45 3 . . . 19 5 187 243 196 190 . Average Temperature 65 | . 41 82 . . . . 7 48 95 45 6 3 . . . 6 5 45 116 74 80 . Received Heat Transfer 3582 | . 354 129 342 20 . . 387 612 207 45 18 84 30 87 9 309 229 207 54 150 279 30 Siege Activations . | . . . . . . . . . . . . . . . . . . . . . . . Robots Corrupted . | . . . . . . . . . . . . . . . . . . . . . . . Combat Hostiles . | . . . . . . . . . . . . . . . . . . . . . . . Parts Fried . | . . . . . . . . . . . . . . . . . . . . . . . Impact Corruptions . | . . . . . . . . . . . . . . . . . . . . . . . Robots Melted . | . . . . . . . . . . . . . . . . . . . . . . . Combat Hostiles . | . . . . . . . . . . . . . . . . . . . . . . . Parts Melted 6 | . 3 1 . . . . . . . . . . . 1 . . 1 . . . . . Heat Transferred 1258 | . 777 481 . . . . . . . . . . . . . . . . . . . . Parts Sabotaged 4 | . . . . . . . . . . . . . . . . . . . . . 4 . Parts Stolen . | . . . . . . . . . . . . . . . . . . . . . . . Parts Stripped . | . . . . . . . . . . . . . . . . . . . . . . . Power Chain Reactions 1 | . . . . . . . . . . . 1 . . . . . . . . . . . Missiles Intercepted . | . . . . . . . . . . . . . . . . . . . . . . . Alert | -11 -10 -10 -9 -9 -9 -8 -8 -8 -8 -8 -7 -7 -7 -7 -6 -6 -5 -5 -5 -5 -4 -4 ------- Run | Scr Mat Min Mat Min Exi Min Mat Gar Mat Gar Fac Gar Fac Gar Fac Gar Fac Gar Fac Gar Fac Gar Peak Influence 1327 | . 367 264 435 302 . . 211 458 554 908 753 729 662 498 366 1327 728 1032 583 1089 927 432 Initial 696 | . . 64 24 122 . . . 18 222 360 476 387 382 376 259 114 696 389 541 406 571 414 Average 523 | . 233 118 260 266 . . 59 225 317 659 594 541 448 434 278 835 556 748 499 819 711 415 Maximum Alert Level 4 | . 1 1 2 1 . . 1 2 2 3 3 3 2 2 1 4 3 3 2 3 3 2 Low Security (%) 14 | . 28 90 31 7 . 100 91 52 . . . . . . 15 3 . . . . . . Level 1 21 | . 71 9 45 92 . . 8 40 83 15 . 1 46 25 84 6 32 6 21 . . . Level 2 36 | . . . 22 . . . . 6 16 22 64 90 53 74 . 21 41 28 78 37 66 100 Level 3 24 | . . . . . . . . . . 62 35 7 . . . 46 25 64 . 62 33 . Level 4 2 | . . . . . . . . . . . . . . . . 21 . . . . . . Level 5 . | . . . . . . . . . . . . . . . . . . . . . . . High Security . | . . . . . . . . . . . . . . . . . . . . . . . Max Security . | . . . . . . . . . . . . . . . . . . . . . . . Squads Dispatched 29 | . 2 . 3 . . . 2 . 3 . . . 3 . . . 6 . 1 . 9 . Investigation 3 | . . . 1 . . . . . . . . . 1 . . . 1 . . . . . Extermination 8 | . . . . . . . . . . . . . 2 . . . . . 1 . 5 . Reinforcement 9 | . 2 . 2 . . . . . 1 . . . . . . . 2 . . . 2 . Assault 2 | . . . . . . . . . . . . . . . . . . . . . 2 . Garrison 7 | . . . . . . . 2 . 2 . . . . . . . 3 . . . . . Intercept . | . . . . . . . . . . . . . . . . . . . . . . . Searches Triggered . | . . . . . . . . . . . . . . . . . . . . . . . Construction Impeded 1 | . . . . . . . . . . . . . . . . . . . . . 1 . Haulers Reinforced . | . . . . . . . . . . . . . . . . . . . . . . . Active Scanning Responses . | . . . . . . . . . . . . . . . . . . . . . . . Cargo Convoy Interrupts . | . . . . . . . . . . . . . . . . . . . . . . . Alert ID Control Effect 36 | . . . . . . . . . . . . . . 7 6 2 3 4 5 6 3 . Stealth | -11 -10 -10 -9 -9 -9 -8 -8 -8 -8 -8 -7 -7 -7 -7 -6 -6 -5 -5 -5 -5 -4 -4 --------- Run | Scr Mat Min Mat Min Exi Min Mat Gar Mat Gar Fac Gar Fac Gar Fac Gar Fac Gar Fac Gar Fac Gar Distress Signals 13 | . 2 . 4 . . . 1 . 3 . . . 2 . . . . . . . 1 . Communications Jammed 137 | . . . . . . . . . . . . . 66 . . 15 . . . . 56 . Distress Signals 136 | . . . . . . . . . . . . . 66 . . 15 . . . . 55 . Times Spotted 421 | . 23 11 34 18 . . 16 13 22 17 11 14 15 20 4 35 18 33 19 31 53 14 Peak Tracking Total 13 | . 8 3 8 9 . . 4 3 6 4 4 4 7 4 2 4 6 11 6 6 8 13 Tactical Retreats 10 | . 3 1 . . . . . . . . . . . . . 2 1 1 1 . 1 . Traps | -11 -10 -10 -9 -9 -9 -8 -8 -8 -8 -8 -7 -7 -7 -7 -6 -6 -5 -5 -5 -5 -4 -4 ------- Run | Scr Mat Min Mat Min Exi Min Mat Gar Mat Gar Fac Gar Fac Gar Fac Gar Fac Gar Fac Gar Fac Gar Traps Triggered 30 | . 1 . 2 . . . . 5 . 2 1 3 . 2 1 4 1 3 . 2 3 . Indirectly . | . . . . . . . . . . . . . . . . . . . . . . . Trap Hack Attempts . | . . . . . . . . . . . . . . . . . . . . . . . Triggered . | . . . . . . . . . . . . . . . . . . . . . . . Disarmed . | . . . . . . . . . . . . . . . . . . . . . . . Reprogrammed . | . . . . . . . . . . . . . . . . . . . . . . . Reused . | . . . . . . . . . . . . . . . . . . . . . . . Traps Extracted . | . . . . . . . . . . . . . . . . . . . . . . . Installed . | . . . . . . . . . . . . . . . . . . . . . . . Triggered . | . . . . . . . . . . . . . . . . . . . . . . . Machines | -11 -10 -10 -9 -9 -9 -8 -8 -8 -8 -8 -7 -7 -7 -7 -6 -6 -5 -5 -5 -5 -4 -4 ---------- Run | Scr Mat Min Mat Min Exi Min Mat Gar Mat Gar Fac Gar Fac Gar Fac Gar Fac Gar Fac Gar Fac Gar Machines Disabled 61 | . . . . . . . . 2 . 1 6 2 . 4 6 5 2 6 5 6 16 . Max in Single Turn 9 | . . . . . . . . 1 . 1 6 1 . 1 1 1 2 2 3 2 9 . Garrison Relay 18 | . . . . . . . . 2 . 1 . 2 . 4 . 3 . 4 . 2 . . Machines Sabotaged . | . . . . . . . . . . . . . . . . . . . . . . . Garrisons Compromised . | . . . . . . . . . . . . . . . . . . . . . . . Overloaded Fab Kills . | . . . . . . . . . . . . . . . . . . . . . . . Hacking | -11 -10 -10 -9 -9 -9 -8 -8 -8 -8 -8 -7 -7 -7 -7 -6 -6 -5 -5 -5 -5 -4 -4 --------- Run | Scr Mat Min Mat Min Exi Min Mat Gar Mat Gar Fac Gar Fac Gar Fac Gar Fac Gar Fac Gar Fac Gar Machines Accessed 28 | . . . 1 . 2 . 2 1 2 1 1 . 3 1 5 2 2 1 1 1 2 . Terminals 13 | . . . 1 . . . 1 1 1 1 . . 1 1 1 2 1 1 . 1 . . Fabricators 5 | . . . . . . . . . . . . . 1 . 3 . . . . . 1 . Repair Stations . | . . . . . . . . . . . . . . . . . . . . . . . Recycling Units . | . . . . . . . . . . . . . . . . . . . . . . . Scanalyzers . | . . . . . . . . . . . . . . . . . . . . . . . Garrison Access 8 | . . . . . . . 1 . 1 . 1 . 1 . 1 . 1 . 1 . 1 . Total Hacks 67 | . . . 4 . 5 . 8 2 6 1 1 . 5 1 10 2 14 1 1 2 4 . Successful 38 | . . . . . 5 . 4 . 3 1 1 . 3 1 5 1 9 1 1 . 3 . Failed 29 | . . . 4 . . . 4 2 3 . . . 2 . 5 1 5 . . 2 1 . Catastrophic 5 | . . . 2 . . . . 1 . . . . . . 1 . . . . . 1 . Database Lockouts . | . . . . . . . . . . . . . . . . . . . . . . . Manual 32 | . . . . . 1 . 6 . 5 . . . 3 . 3 . 13 . . . 1 . Terminals 41 | . . . 4 . . . 7 2 4 1 . . 2 1 3 2 12 1 . 2 . . Fabricators 10 | . . . . . . . . . . . . . 2 . 5 . . . . . 3 . Repair Stations . | . . . . . . . . . . . . . . . . . . . . . . . Recycling Units . | . . . . . . . . . . . . . . . . . . . . . . . Scanalyzers . | . . . . . . . . . . . . . . . . . . . . . . . Garrison Access 11 | . . . . . . . 1 . 2 . 1 . 1 . 2 . 2 . 1 . 1 . Terminal Hacks 17 | . . . . . 5 . 1 . 1 1 . . . 1 2 1 4 1 . . . . Record 5 | . . . . . 4 . 1 . . . . . . . . . . . . . . . Part Schematic 1 | . . . . . . . . . . . . . . . . . 1 . . . . . Robot Schematic 2 | . . . . . . . . . . . . . . . . . 2 . . . . . Robot Analysis 1 | . . . . . . . . . . . . . . . 1 . . . . . . . Emergency Access Points 2 | . . . . . . . . . . . . . . 1 . 1 . . . . . . Terminal Index 3 | . . . . . . . . . 1 . . . . . 1 . 1 . . . . . Garrison Registry 2 | . . . . . . . . . . 1 . . . . . . . 1 . . . . EX-Prototype ID Bank 1 | . . . . . 1 . . . . . . . . . . . . . . . . . Fabricator Hacks 5 | . . . . . . . . . . . . . 1 . 2 . . . . . 2 . Network Status 3 | . . . . . . . . . . . . . 1 . 2 . . . . . . . Load Schematic 1 | . . . . . . . . . . . . . . . . . . . . . 1 . Build 1 | . . . . . . . . . . . . . . . . . . . . . 1 . Repair Station Hacks . | . . . . . . . . . . . . . . . . . . . . . . . Recycling Unit Hacks . | . . . . . . . . . . . . . . . . . . . . . . . Scanalyzer . | . . . . . . . . . . . . . . . . . . . . . . . Garrison Access Hacks 8 | . . . . . . . 1 . 1 . 1 . 1 . 1 . 1 . 1 . 1 . Unlock Access 8 | . . . . . . . 1 . 1 . 1 . 1 . 1 . 1 . 1 . 1 . Unauthorized Hacks 8 | . . . . . . . 2 . 1 . . . 1 . . . 4 . . . . . Terminals 6 | . . . . . . . 2 . 1 . . . . . . . 3 . . . . . Track 1 | . . . . . . . . . . . . . . . . . 1 . . . . . Botnet 2 | . . . . . . . 1 . . . . . . . . . 1 . . . . . Operators 3 | . . . . . . . 1 . 1 . . . . . . . 1 . . . . . Fabricators 1 | . . . . . . . . . . . . . 1 . . . . . . . . . Recompile 1 | . . . . . . . . . . . . . 1 . . . . . . . . . Repair Stations . | . . . . . . . . . . . . . . . . . . . . . . . Recycling Units . | . . . . . . . . . . . . . . . . . . . . . . . Scanalyzers . | . . . . . . . . . . . . . . . . . . . . . . . Garrison Access 1 | . . . . . . . . . . . . . . . . . 1 . . . . . Restock 1 | . . . . . . . . . . . . . . . . . 1 . . . . . Data Cores Recovered . | . . . . . . . . . . . . . . . . . . . . . . . Used . | . . . . . . . . . . . . . . . . . . . . . . . Hacking Detections 18 | . . . 1 . . . 1 1 2 1 . . 1 1 5 1 2 . . 1 1 . Full Trace Events 2 | . . . 1 . . . . . . . . . . . . . 1 . . . . . Feedback Events . | . . . . . . . . . . . . . . . . . . . . . . . Feedback Blocked . | . . . . . . . . . . . . . . . . . . . . . . . Robot Schematics Acquired 2 | . . . . . . . . . . . . . . . . . 2 . . . . . Robots Built 2 | . . . . . . . . . . . . . . . . . . . . . 2 . Authchips 1 | . . . . . . . . . . . . . . . . . . . . . 1 . Time 84 | . . . . . . . . . . . . . . . . . . . . . 84 . Total Robot Build Rating 12 | . . . . . . . . . . . . . . . . . . . . . 12 . Part Schematics Acquired 1 | . . . . . . . . . . . . . . . . . 1 . . . . . Parts Built . | . . . . . . . . . . . . . . . . . . . . . . . Authchips . | . . . . . . . . . . . . . . . . . . . . . . . Time . | . . . . . . . . . . . . . . . . . . . . . . . Total Part Build Rating . | . . . . . . . . . . . . . . . . . . . . . . . Parts Repaired . | . . . . . . . . . . . . . . . . . . . . . . . Time . | . . . . . . . . . . . . . . . . . . . . . . . Parts Recycled . | . . . . . . . . . . . . . . . . . . . . . . . Recycled Matter . | . . . . . . . . . . . . . . . . . . . . . . . Retrieved Matter . | . . . . . . . . . . . . . . . . . . . . . . . Retrieved Components . | . . . . . . . . . . . . . . . . . . . . . . . Parts Scanalyzed . | . . . . . . . . . . . . . . . . . . . . . . . Part Schematics Acquired . | . . . . . . . . . . . . . . . . . . . . . . . Parts Damaged . | . . . . . . . . . . . . . . . . . . . . . . . Bothacking | -11 -10 -10 -9 -9 -9 -8 -8 -8 -8 -8 -7 -7 -7 -7 -6 -6 -5 -5 -5 -5 -4 -4 ------------ Run | Scr Mat Min Mat Min Exi Min Mat Gar Mat Gar Fac Gar Fac Gar Fac Gar Fac Gar Fac Gar Fac Gar Used RIF Installer 6 | . . . . . . . . 1 . 1 . 1 . 1 . 1 . 1 . . . . Threat Obfuscator 2 | . . . . . . . . . . . . 1 . . . . . 1 . . . . Signal Jammer 1 | . . . . . . . . . . 1 . . . . . . . . . . . . Patrol Navigation 1 | . . . . . . . . . . . . . . . . 1 . . . . . . Alert ID Control 1 | . . . . . . . . . . . . . . 1 . . . . . . . . Robots Hacked 75 | . . . . . . . . . . . 3 11 8 11 1 8 5 6 11 9 2 . Non-combat 15 | . . . . . . . . . . . 2 . 5 . . . 3 . 4 . 1 . Combat 60 | . . . . . . . . . . . 1 11 3 11 1 8 2 6 7 9 1 . Robot Hacks Applied 80 | . . . . . . . . . . . 4 11 8 11 1 8 6 6 12 10 3 . ignore_repairs 2 | . . . . . . . . . . . . . 2 . . . . . . . . . map_walls 1 | . . . . . . . . . . . . . . . . . . . . . 1 . drop_inventory 4 | . . . . . . . . . . . 2 . 2 . . . . . . . . . ignore_parts 1 | . . . . . . . . . . . . . . . . . 1 . . . . . purge_threat 1 | . . . . . . . . . . . . . . . . . 1 . . . . . map_route 2 | . . . . . . . . . . . . . . . . . 1 . 1 . . . find_garrison 6 | . . . . . . . . . . . 1 . 1 . 1 . 1 . 1 . 1 . mark_system 1 | . . . . . . . . . . . . . . . . . . . . 1 . . reboot_system 3 | . . . . . . . . . . . . 2 1 . . . . . . . . . overwrite_iff 23 | . . . . . . . . . . . . 2 1 4 . 8 . 2 4 2 . . streamctrl_high 1 | . . . . . . . . . . . . . . . . . . 1 . . . . formatsys_low 5 | . . . . . . . . . . . . . 1 . . . 1 . 3 . . . formatsys_high 30 | . . . . . . . . . . . 1 7 . 7 . . 1 3 3 7 1 . Relay Couplers Released 71 | . . . . . . . . 8 . 4 . 9 . 14 . 13 . 13 . 10 . . Machine Destruction 71 | . . . . . . . . 8 . 4 . 9 . 14 . 13 . 13 . 10 . . Attached 45 | . . . . . . . . . . 1 2 5 1 6 1 5 5 11 1 5 2 . Fabnet Peak Effective % . | . . . . . . . . . . . . . . . . . . . . . . . Robots Rewired 15 | . . . . . . . . . . . . . . 3 . 3 . . . 9 . . Allies Hacked 2 | . . . . . . . . . . . . . 1 . . . . . . . 1 . Hacks Repelled . | . . . . . . . . . . . . . . . . . . . . . . . Allies | -11 -10 -10 -9 -9 -9 -8 -8 -8 -8 -8 -7 -7 -7 -7 -6 -6 -5 -5 -5 -5 -4 -4 -------- Run | Scr Mat Min Mat Min Exi Min Mat Gar Mat Gar Fac Gar Fac Gar Fac Gar Fac Gar Fac Gar Fac Gar Total Allies 81 | . . . . . . . . . . . 1 9 2 16 . 13 2 6 10 18 4 . Largest Group 13 | . . . . . . . . . . . 1 6 7 7 4 5 3 3 5 13 3 . Highest-Rated Group 489 | . . . . . . . . . . . 10 148 166 250 250 383 229 131 161 489 155 . Highest-Rated Ally 148 | . . . . . . . . . . . 10 32 32 95 95 148 137 49 49 68 68 . Total Orders 11 | . . . . . . . . . . . . . 1 . . . . . 4 6 . . STAY 4 | . . . . . . . . . . . . . . . . . . . . 4 . . ROAM 1 | . . . . . . . . . . . . . . . . . . . . 1 . . FOLLOW 1 | . . . . . . . . . . . . . . . . . . . . 1 . . AID 1 | . . . . . . . . . . . . . 1 . . . . . . . . . DROP 2 | . . . . . . . . . . . . . . . . . . . 2 . . . COLLECT 2 | . . . . . . . . . . . . . . . . . . . 2 . . . Ally Attacks 403 | . . . . . . . . . . . . 24 40 53 21 70 9 33 20 83 50 . Total Damage 12022 | . . . . . . . . . . . . 587 1088 1177 658 2741 348 862 385 3134 1042 . Kills 101 | . . . . . . . . . . . . 6 10 10 7 19 4 4 5 28 8 . Allies Corrupted 2 | . . . . . . . . . . . . 1 . . . . . . . 1 . . Allies Melted . | . . . . . . . . . . . . . . . . . . . . . . . Intel | -11 -10 -10 -9 -9 -9 -8 -8 -8 -8 -8 -7 -7 -7 -7 -6 -6 -5 -5 -5 -5 -4 -4 ------- Run | Scr Mat Min Mat Min Exi Min Mat Gar Mat Gar Fac Gar Fac Gar Fac Gar Fac Gar Fac Gar Fac Gar Robot Analysis Total 1 | . . . . . . . . . . . . . . . 1 . . . . . . . Derelict Logs Recovered 1 | . . 1 . . . . . . . . . . . . . . . . . . . . Drone Launches . | . . . . . . . . . . . . . . . . . . . . . . . Drone Recoveries . | . . . . . . . . . . . . . . . . . . . . . . . Exploration | -11 -10 -10 -9 -9 -9 -8 -8 -8 -8 -8 -7 -7 -7 -7 -6 -6 -5 -5 -5 -5 -4 -4 ------------- Run | Scr Mat Min Mat Min Exi Min Mat Gar Mat Gar Fac Gar Fac Gar Fac Gar Fac Gar Fac Gar Fac Gar Turns Passed 18852 | . 418 505 866 376 594 618 427 1290 631 1020 418 1165 517 1280 473 2316 695 1254 705 1427 1809 48 Spaces Moved 8135 | 1 163 312 347 188 331 258 121 454 188 366 125 545 285 665 286 1045 299 619 296 570 578 93 Core 204 | . . 64 . . . . . . . . . . . . . . . . . . 47 93 Treads 7683 | . 126 248 347 188 331 258 121 454 188 366 125 538 285 665 286 1045 299 619 296 570 328 . Legs 45 | 1 37 . . . . . . . . . . 7 . . . . . . . . . . Wheels 203 | . . . . . . . . . . . . . . . . . . . . . 203 . Hover . | . . . . . . . . . . . . . . . . . . . . . . . Flight . | . . . . . . . . . . . . . . . . . . . . . . . Fastest Speed 50 | 120 120 50 160 160 160 240 240 240 240 240 240 160 160 160 160 160 180 145 145 145 50 50 Average Speed 188 | 120 150 137 162 160 178 240 240 240 240 240 259 181 160 160 160 185 192 164 145 210 240 50 Slowest Speed 320 | 120 160 160 240 160 240 240 240 240 240 240 320 320 160 160 160 270 270 240 145 320 320 50 Overloaded Moves . | . . . . . . . . . . . . . . . . . . . . . . . Propulsion Burnouts . | . . . . . . . . . . . . . . . . . . . . . . . Robots Hopped . | . . . . . . . . . . . . . . . . . . . . . . . Cave-ins Triggered . | . . . . . . . . . . . . . . . . . . . . . . . Exploration Rate (%) 40 | 2 49 77 37 38 70 61 18 58 25 58 8 69 12 80 12 87 14 54 8 60 21 20 Regions Visited 22 Branch Regions 4 Pre-discovered Areas 1 | . . . . . 1 . . . . . . . . . . . . . . . . . Known Exits Taken 8 | . . . . . . . 1 . 1 . 1 . 1 . 1 . 1 . 1 . 1 . Unknown Exits Taken 7 | 1 1 1 1 1 1 1 . . . . . . . . . . . . . . . . Scrap Searched 4 | . . 1 . 2 . 1 . . . . . . . . . . . . . . . . Spaces Dug 166 | . . . . . . . 1 . . 2 . 10 3 10 . 4 1 33 1 83 18 . Terrain Destroyed 742 | . . . . . . . 1 . . 14 19 10 21 10 . 150 39 111 45 237 85 . Melee 36 | . . . . . . . 1 . . . . 10 3 10 . 4 1 6 1 . . . Projectile 33 | . . . . . . . . . . . . . . . . . 8 9 . 1 15 . AOE 672 | . . . . . . . . . . 14 19 . 18 . . 146 30 95 44 236 70 . Terrain Rammed . | . . . . . . . . . . . . . . . . . . . . . . . Walls Destroyed . | . . . . . . . . . . . . . . . . . . . . . . . Machines Disabled . | . . . . . . . . . . . . . . . . . . . . . . . Actions | -11 -10 -10 -9 -9 -9 -8 -8 -8 -8 -8 -7 -7 -7 -7 -6 -6 -5 -5 -5 -5 -4 -4 --------- Run | Scr Mat Min Mat Min Exi Min Mat Gar Mat Gar Fac Gar Fac Gar Fac Gar Fac Gar Fac Gar Fac Gar Total 10421 | . 240 349 504 233 335 258 187 567 275 460 188 645 333 821 298 1338 366 758 552 741 879 94 Wait 647 | . 7 1 21 8 . . 13 16 11 16 29 2 16 48 6 128 5 4 210 10 95 1 Move 8120 | . 162 311 346 187 330 257 121 453 188 365 125 544 285 664 286 1044 298 618 296 569 578 93 Hop . | . . . . . . . . . . . . . . . . . . . . . . . Pick Up 184 | . 3 4 14 8 2 1 5 11 6 12 2 7 4 8 1 12 5 22 3 18 36 . Fast Attach 88 | . 1 2 11 1 . . 4 1 . 1 1 3 . 3 2 13 2 9 2 10 22 . Attach 81 | . 4 1 6 2 1 . 3 8 2 2 4 2 1 4 1 5 5 12 . 1 17 . Detach 14 | . . 1 . . . . . . . 1 . 1 . . . 2 1 . . 3 5 . Swap 82 | . 1 . 1 . 1 . 3 5 2 6 5 5 5 1 . 11 8 10 4 11 3 . Drop 105 | . 1 5 . 6 1 . 1 8 2 13 . 5 4 9 . 18 6 8 3 3 12 . Fire 661 | . 47 19 101 15 . . 35 55 59 16 18 18 13 23 1 39 32 45 25 38 62 . Melee 277 | . . . . . . . 1 . . 24 4 58 3 52 1 47 1 30 9 25 22 . Ram 2 | . . . . . . . . . . . . . . . . . . . . . 2 . Kick 2 | . 2 . . . . . . . . . . . . . . . . . . . . . Crush 50 | . 12 5 4 4 . . 1 . 5 . . . 1 . . . 3 . . . 15 . Escape Stasis 30 | . . . . . . . . 10 . 4 . . . . . 2 . . . 4 10 . Rewire 78 | . . . . 2 . . . . . . . . 1 9 . 17 . . . 49 . . Trap . | . . . . . . . . . . . . . . . . . . . . . . . Miscellaneous . | . . . . . . . . . . . . . . . . . . . . . . . Route ------- -11/Scrapyard -10/Materials (discovered 3 exits: *Mat x2 / [*Min]) -10/Mines -9/Materials (discovered 2 exits: *Mat / [*Min]) -9/Mines -9/Exiles -8/Mines (discovered 2 exits: *Mat x2) -8/Materials -8/Garrison (discovered 2 exits: *Mat x2) -8/Materials -8/Garrison (discovered 3 exits: *Fac x3) -7/Factory (discovered 2 exits: [*Low] / Gar) -7/Garrison (discovered 3 exits: *Fac x3) -7/Factory (discovered 2 exits: [*Low] / Gar) -7/Garrison (discovered 4 exits: *Fac x3 / [*Fac]) -6/Factory -6/Garrison (discovered 3 exits: *Fac x3) -5/Factory -5/Garrison (discovered 3 exits: *Fac x3) -5/Factory (discovered 2 exits: *Fac / Gar) -5/Garrison (discovered 2 exits: *Fac x2) -4/Factory (discovered 2 exits: [*Res] / Gar) -4/Garrison History --------- Turn | Location | Event 1 | -11/Scrapyard | Discovered new exit (range 0) 1 | -11/Scrapyard | Entered Materials 134 | -10/Materials | Core integrity fell below 50% 146 | -10/Materials | Discovered new exit (range 16) 154 | -10/Materials | Lost 4 parts (1p1n2w) 159 | -10/Materials | Destroyed 9 combat bots 301 | -10/Materials | Build established: Mutant 369 | -10/Materials | Discovered new exit (range 5) 398 | -10/Materials | Discovered new exit (range 12) 419 | -10/Materials | Entered Mines 679 | -10/Mines | Learned Materials interactive machine intel 806 | -10/Mines | Core integrity fell below 20% 858 | -10/Mines | Lost 3 parts (1n1u1w) 919 | -10/Mines | Discovered new exit (range 9) 924 | -10/Mines | Entered Materials 924 | -9/Materials | Evolved 2 slots: Utility x2 925 | -9/Materials | Loaded intel: 18 interactive machine locations 1240 | -9/Materials | Lost 3 parts (2n1w) 1538 | -9/Materials | Core integrity fell below 50% 1597 | -9/Materials | Discovered new exit (range 15) 1665 | -9/Materials | Build established: Scavenger-Mutant 1782 | -9/Materials | Discovered new exit (range 6) 1790 | -9/Materials | Entered Mines 2034 | -9/Mines | Assembled infested the area 2072 | -9/Mines | Met 8R-AWN 2081 | -9/Mines | Lost 3 parts (2n1w) 2159 | -9/Mines | Discovered new exit (range 5) 2166 | -9/Mines | Entered Exiles 2208 | -9/Exiles | Welcomed by 8R-AWN 2235 | -9/Exiles | Met EX-HEX 2285 | -9/Exiles | Met EX-BIN 2302 | -9/Exiles | Aligned with FarCom system 2304 | -9/Exiles | Given EX-Vault access code 2341 | -9/Exiles | Opened EX-Vault 2355 | -9/Exiles | Found Longsword +1 2392 | -9/Exiles | Warned to stay clear of 0b10 Research branches 2439 | -9/Exiles | Met EX-DEC 2442 | -9/Exiles | Learned location of Zion (-7) 2741 | -9/Exiles | Discovered new exit (range 10) 2760 | -9/Exiles | Left Exiles lab with Longsword +1 2760 | -9/Exiles | Entered Mines 3191 | -8/Mines | Discovered new exit (range 8) 3225 | -8/Mines | Discovered new exit (range 11) 3378 | -8/Mines | Entered Materials 3378 | -8/Materials | Evolved 2 slots: Utility x2 3700 | -8/Materials | Garrison activated, responded to threat 3805 | -8/Materials | Identified exit to Garrison 3805 | -8/Materials | Entered Garrison 3836 | -8/Garrison | Lost 3 parts (1p1u1w) 3880 | -8/Garrison | Triggered checkpoint 3978 | -8/Garrison | Installed Relay Interface Framework 4021 | -8/Garrison | Garrison Relay disabled 4158 | -8/Garrison | Triggered checkpoint 4256 | -8/Garrison | Triggered checkpoint 4393 | -8/Garrison | Discovered new exit (range 13) 4478 | -8/Garrison | Triggered checkpoint 4506 | -8/Garrison | Garrison Relay disabled 4674 | -8/Garrison | Triggered checkpoint 4787 | -8/Garrison | Triggered checkpoint 4831 | -8/Garrison | Lost 4 parts (1p1n2w) 4987 | -8/Garrison | Discovered new exit (range 11) 5084 | -8/Garrison | Build established: Mutant 5095 | -8/Garrison | Entered Materials 5604 | -8/Materials | Garrison activated, responded to threat 5624 | -8/Materials | Build established: Scavenger-Mutant 5726 | -8/Materials | Identified exit to Garrison 5726 | -8/Materials | Entered Garrison 5804 | -8/Garrison | Triggered checkpoint 5864 | -8/Garrison | Triggered checkpoint 5899 | -8/Garrison | Garrison Relay disabled 5999 | -8/Garrison | Discovered new exit (range 74) 5999 | -8/Garrison | Discovered new exit (range 48) 5999 | -8/Garrison | Discovered new exit (range 81) 6108 | -8/Garrison | Triggered checkpoint 6150 | -8/Garrison | Destroyed 11 combat bots 6282 | -8/Garrison | Expanded RIF knowledge: Signal Jamming 6368 | -8/Garrison | Build established: Mutant 6442 | -8/Garrison | Triggered checkpoint 6533 | -8/Garrison | Core integrity fell below 50% 6746 | -8/Garrison | Entered Factory 6746 | -7/Factory | Evolved 2 slots: Utility x2 6860 | -7/Factory | Build established: Bothacker-Mutant 6984 | -7/Factory | Discovered new exit (range 14) 7040 | -7/Factory | Lost 3 parts (1n1u1w) 7164 | -7/Factory | Identified exit to Garrison 7164 | -7/Factory | Entered Garrison 7164 | -7/Garrison | Accompanied by 1 ally 7554 | -7/Garrison | Triggered checkpoint 7571 | -7/Garrison | Garrison Relay disabled 7682 | -7/Garrison | Triggered checkpoint 7738 | -7/Garrison | Triggered checkpoint 7807 | -7/Garrison | Discovered new exit (range 10) 7932 | -7/Garrison | Triggered checkpoint 7966 | -7/Garrison | Discovered new exit (range 10) 8058 | -7/Garrison | Triggered checkpoint 8158 | -7/Garrison | Triggered checkpoint 8232 | -7/Garrison | Triggered checkpoint 8243 | -7/Garrison | Garrison Relay disabled 8285 | -7/Garrison | Expanded RIF knowledge: Threat Obfuscation 8317 | -7/Garrison | Discovered new exit (range 5) 8329 | -7/Garrison | Entered Factory 8329 | -7/Factory | Accompanied by 5 allies 8512 | -7/Factory | Found Prototype Launcher 8683 | -7/Factory | Identified Rocket Array 8780 | -7/Factory | Discovered new exit (range 16) 8843 | -7/Factory | Identified exit to Garrison 8846 | -7/Factory | Entered Garrison 8846 | -7/Garrison | Accompanied by 4 allies 8974 | -7/Garrison | Triggered checkpoint 8994 | -7/Garrison | Garrison Relay disabled 9192 | -7/Garrison | Triggered checkpoint 9206 | -7/Garrison | Triggered checkpoint 9256 | -7/Garrison | Expanded RIF knowledge: Alert ID Control 9267 | -7/Garrison | Discovered new exit (range 13) 9328 | -7/Garrison | Triggered checkpoint 9401 | -7/Garrison | Garrison Relay disabled 9540 | -7/Garrison | Triggered checkpoint 9567 | -7/Garrison | Build established: Botlord-Mutant 9604 | -7/Garrison | Discovered new exit (range 11) 9708 | -7/Garrison | Discovered new exit (range 6) 9718 | -7/Garrison | Triggered checkpoint 9828 | -7/Garrison | Garrison Relay disabled 9902 | -7/Garrison | Triggered checkpoint 9963 | -7/Garrison | Discovered new exit (range 12) 10014 | -7/Garrison | Triggered checkpoint 10037 | -7/Garrison | Found embedded Infiltrators 10068 | -7/Garrison | Garrison Relay disabled 10126 | -7/Garrison | Entered Factory 10126 | -6/Factory | Accompanied by 4 allies 10126 | -6/Factory | Evolved 2 slots: Utility x2 10599 | -6/Factory | Identified exit to Garrison 10599 | -6/Factory | Entered Garrison 10599 | -6/Garrison | Accompanied by 2 allies 10623 | -6/Garrison | Found embedded Infiltrators 10664 | -6/Garrison | Triggered checkpoint 10705 | -6/Garrison | Garrison Relay disabled 10781 | -6/Garrison | Spotted B-75 Beast 10788 | -6/Garrison | Triggered checkpoint 10792 | -6/Garrison | Triggered checkpoint 10844 | -6/Garrison | Triggered checkpoint 10914 | -6/Garrison | Triggered checkpoint 11006 | -6/Garrison | Discovered new exit (range 13) 11009 | -6/Garrison | Spotted B-75 Beast 11096 | -6/Garrison | Destroyed B-75 Beast 11147 | -6/Garrison | Rewired B-90 Cyclops 11266 | -6/Garrison | Found Quantum Capacitor 11346 | -6/Garrison | Garrison Relay disabled 11568 | -6/Garrison | Triggered checkpoint 11578 | -6/Garrison | Discovered new exit (range 11) 11805 | -6/Garrison | Garrison Relay disabled 11846 | -6/Garrison | Destroyed Cyclops 5a 11920 | -6/Garrison | Triggered checkpoint 11978 | -6/Garrison | Discovered new exit (range 12) 12076 | -6/Garrison | Triggered checkpoint 12236 | -6/Garrison | Spotted Executioner 12246 | -6/Garrison | Rewired Executioner 12253 | -6/Garrison | Destroyed Executioner 12274 | -6/Garrison | Rewired Executioner 12280 | -6/Garrison | Found Prototype Processor 12280 | -6/Garrison | Identified Exp. Core Analyzer 12412 | -6/Garrison | Spotted B-75 Beast 12427 | -6/Garrison | Destroyed B-75 Beast 12732 | -6/Garrison | Triggered checkpoint 12788 | -6/Garrison | Expanded RIF knowledge: Patrol Navigation 12915 | -6/Garrison | Entered Factory 12915 | -5/Factory | Accompanied by 2 allies 12915 | -5/Factory | Evolved 2 slots: Utility x2 13511 | -5/Factory | Identified exit to Garrison 13610 | -5/Factory | Entered Garrison 13634 | -5/Garrison | Lost 3 parts (1p2u) 13736 | -5/Garrison | Triggered checkpoint 13799 | -5/Garrison | Lost 4 parts (1n1u2w) 13823 | -5/Garrison | Garrison Relay disabled 13904 | -5/Garrison | Triggered checkpoint 13985 | -5/Garrison | Garrison Relay disabled 14037 | -5/Garrison | Triggered checkpoint 14037 | -5/Garrison | Triggered checkpoint 14056 | -5/Garrison | Core integrity fell below 50% 14123 | -5/Garrison | Lost 8 parts (1p1n3u3w) 14126 | -5/Garrison | Destroyed 18 combat bots 14230 | -5/Garrison | Discovered new exit (range 10) 14328 | -5/Garrison | Triggered checkpoint 14383 | -5/Garrison | Discovered new exit (range 10) 14423 | -5/Garrison | Expanded RIF knowledge: Threat Obfuscation 14463 | -5/Garrison | Discovered new exit (range 61) 14463 | -5/Garrison | Discovered new exit (range 5) 14463 | -5/Garrison | Discovered new exit (range 62) 14531 | -5/Garrison | Garrison Relay disabled 14632 | -5/Garrison | Triggered checkpoint 14692 | -5/Garrison | Garrison Relay disabled 14864 | -5/Garrison | Entered Factory 15166 | -5/Factory | Discovered new exit (range 15) 15566 | -5/Factory | Identified exit to Garrison 15569 | -5/Factory | Entered Garrison 15569 | -5/Garrison | Accompanied by 5 allies 15575 | -5/Garrison | Triggered checkpoint 15575 | -5/Garrison | Triggered checkpoint 15709 | -5/Garrison | Garrison Relay disabled 15801 | -5/Garrison | Triggered checkpoint 15954 | -5/Garrison | Core integrity fell below 20% 15961 | -5/Garrison | System corruption reached 10% 15991 | -5/Garrison | Lost 3 parts (3u) 16070 | -5/Garrison | Spotted B-75 Beast 16079 | -5/Garrison | Triggered checkpoint 16084 | -5/Garrison | Triggered checkpoint 16090 | -5/Garrison | Allies destroyed B-75 Beast 16123 | -5/Garrison | Triggered checkpoint 16129 | -5/Garrison | Triggered checkpoint 16214 | -5/Garrison | Discovered new exit (range 12) 16502 | -5/Garrison | Triggered checkpoint 16546 | -5/Garrison | Garrison Relay disabled 16910 | -5/Garrison | Discovered new exit (range 10) 16919 | -5/Garrison | Spotted B-90 Cyclops 16996 | -5/Garrison | Entered Factory 16996 | -4/Factory | Accompanied by 1 ally 16996 | -4/Factory | Evolved 2 slots: Utility x2 17447 | -4/Factory | Lost 4 parts (1p1n2w) 17523 | -4/Factory | Fabricated P-70 Sage (x2) 17599 | -4/Factory | Sage 7b assimilated hostile G-67 Veteran 17648 | -4/Factory | Core integrity fell below 50% 17693 | -4/Factory | Lost 9 parts (1n4u4w) 17746 | -4/Factory | First assault squad dispatched 17987 | -4/Factory | Build established: Hauler-Mutant 18064 | -4/Factory | Discovered new exit (range 12) 18178 | -4/Factory | System corruption reached 10% 18760 | -4/Factory | Core integrity fell below 20% 18805 | -4/Factory | Identified exit to Garrison 18805 | -4/Factory | Entered Garrison 18819 | -4/Garrison | Lost 9 parts (1n6u2w) 18841 | -4/Garrison | Spotted B-86 Titan 18846 | -4/Garrison | Triggered checkpoint 18848 | -4/Garrison | Triggered checkpoint 18853 | -4/Garrison | Destroyed by S-27 Virus with Autogun Last Messages --------------- 18838_ System corrupted: Component data lost. 18842_ Slug penetrates Wall. 18842_ Penetrated by Slug. 18845_ Imp. Target Analyzer destroyed. 18845_ Critical hit (Blast). 18845_ Knocked back. 18846_ Beams of light sweep through the air. An alarm sounds. 18846_ Acquired 5 matter. 18846_ Imp. Heat Sink destroyed. 18846_ Slug penetrates B-86 Titan. 18846_ Slug penetrates Reinforced Barrier. 18848_ Beams of light sweep through the air. An alarm sounds. 18848_ C-30 ARC bursts open, deploying its payload. 18848_ B-60 Warrior unfolds itself. 18848_ G-67 Veteran unfolds itself. 18848_ Penetrated by Slug. 18848_ Slug penetrates B-60 Warrior. 18850_ Penetrated by Slug. 18850_ Slug penetrates Wall. 18850_ Penetrated by Slug. Map ----- +----------------------------------------------------+ | ?????????????????????????????????????????????????# | | ?????????????????????????????????????????????????" | | ?????????????????????????????????????????????????" | | ?????????????????????????????????????????????????" | | ?????????????????????????????????????????????????# | | ?????????????????????????????????????????????????# | | ?????????????????????????????????????????????????# | | ?????????????????????????????????????????????????# | | ?????????????????????????????????????????????????# | | ?????????????????????????????????????????????????# | | ?????????????????????????????????????????????????? | | ?????????????????????????????????????????????????? | | ?????????????????????????????????##??????????????? | | ???????????????????????????????? #??????######### | | ??????????????????????????h????? #??????# | | ???????????????????????????????? #??????# | | ???????????????????????????????# #??????# ###### | | ???????????????????????????h???# #??????# #????? | | ???????????????????????????????# #??????# #????? | | ???????????????????????????????# #??????# #????? | | ?????????????????????#?????????# ######## #????? | | ?????????????????????# ????????# ## ## #????? | | ?????????????????????# ??????## ## ## ##???? | | ?????????????????????# ####### s ##### | | ?????????????????????# | | ?????????????????????# @ s s | | ?????????????????????####T##### s ## ## ##### | | ????????????????????????###?###l ## "# #???? | | ????????????????????????????# b "???? | | ????????????????????????????# BB "???? | | ????????????????????????????# BB "???? | | ????????????????????????????# "???? | | ????????????????????????????### ## ## #???? | | ??????????????????????????????# ## ## #???? | | ??????????????????????????????" h ??? | | ??????????????????????????????# ? | | ??????????????????????????????# ####? | | ??????????????????????????????# bg##""""## ##???? | | ??????????????????????????????# g #??????? #????? | | ??????????????????????????????#g "#???????? #????? | | ??????????????????????????????# "%#???????? #????? | | ??????????????????????????????# "#??????????????? | | ??????????????????????????????# #??????????????? | | ??????????????????????????????# ???????????????? | | ??????????????????????????????# ???????????????? | | ?????????????????????????????? ???????????????? | | ??????????????????????????????? ???????????????? | | ?????????????????????????????????????????????????? | | ?????????????????????????????????????????????????? | | ?????????????????????????????????????????????????? | +----------------------------------------------------+ Best States ------------- Heat Dissipation 97 Energy Generation 29 Energy Capacity 350 Matter Stores 300 Matter Capacity 300 Sight Range 23 Terrain Scan Density 10 Armor Coverage 375 Core Shielding 30 Propulsion Shielding 33 Point Defense Rating 160 Evasion (%) 55 Targeting Accuracy 19 Target Analysis 6 Core Analysis 8 Recoil Reduction 2 Offensive Hacking 22 Defensive Hacking 14 Relay Coupler Types 8 Relay Coupler Value 228 Authchip Count 16 Item Schematics ----------------- Point Defense System | -5/Factory | Hacked Robot Schematics ------------------ P-70 Sage | -5/Factory | Hacked S-27 Virus | -5/Factory | Hacked Fabricated ------------ P-70 Sage | x2 | -4/Factory | Authchip Alien Tech Used ----------------- None Achievements -------------- None Challenges ------------ None Game ------ Seed FissionBeamMembrane Manual? 0 Play Time 02:34:28 Cumulative 279.5 hours Start 2022.08.05 @ 20:08:30 End 2022.08.09 @ 09:39:29 Sessions 9 Manual Loads 0 Difficulty Rogue Special Mode None Game No. 323 Rogue 323 Adventurer 0 Explorer 0 Win Type - Total 11 Types 8/0/2/1/0/0/0/0/0 Lore% 71 Gallery% 87 Achievement% 74 Wizard Run 0 Options --------- ASCII 0 Keyboard 0 Movement Numpad Keybinds 0 Fullscreen 1 Font 18/Terminus Map View 76x50 Tactical HUD 1 Map Filters NONE Filters NONE Steam 1 RUN: f3067412-43fb-49fe-9cf7-5752f03688d8